fUSD/lending_fUSD_20260619
["ID","MTS","AMOUNT","RATE_DAILY","PERIOD"]
[425527348,1781799057000,-151.0,0.000339,7]
[425527346,1781799057000,-151.0,0.000339,7]
[425527339,1781799057000,-151.0,0.000339,7]
[425527344,1781799057000,-151.0,0.000339,7]
[425527340,1781799057000,-644.199374,0.000339,7]
[425527341,1781799057000,-151.0,0.000339,7]
[425527333,1781799057000,-152.827056,0.000339,7]
[425527343,1781799057000,-151.0,0.000339,7]
[425527350,1781799057000,-163.590595,0.000339,7]
[425527352,1781799057000,-163.590595,0.000339,7]
[425527349,1781799057000,-151.0,0.000339,7]
[425527351,1781799057000,-151.0,0.000339,7]
[425527353,1781799057000,-151.0,0.000339,7]
[425527357,1781799057000,-151.0,0.000339,7]
[425527355,1781799057000,-151.0,0.000339,7]
[425527356,1781799057000,-163.590595,0.000339,7]
[425527359,1781799057000,-151.0,0.000339,7]
[425527363,1781799057000,-178.516846,0.000339,7]
[425527362,1781799057000,-151.0,0.000339,7]
[425527358,1781799057000,-151.0,0.000339,7]
[425527336,1781799057000,-644.199374,0.000339,7]
[425527361,1781799057000,-151.0,0.000339,7]
[425527345,1781799057000,-151.0,0.000339,7]
[425527335,1781799057000,-644.199374,0.000339,7]
[425527321,1781799057000,-164.561784,0.000339,7]
[425527338,1781799057000,-644.199374,0.000339,7]
[425527360,1781799057000,-151.0,0.000339,7]
[425527309,1781799057000,-327.455466,0.000339,7]
[425527313,1781799057000,-151.0,0.000339,7]
[425527316,1781799057000,-151.0,0.000339,7]
[425527312,1781799057000,-151.0,0.000339,7]
[425527318,1781799057000,-176.9240671,0.000339,120]
[425527311,1781799057000,-164.561784,0.000339,7]
[425527310,1781799057000,-151.0,0.000339,7]
[425527314,1781799057000,-327.455466,0.000339,7]
[425527317,1781799057000,-169.87728653,0.000339,120]
[425527315,1781799057000,-164.561784,0.000339,7]
[425527319,1781799057000,-164.561784,0.000339,7]
[425527324,1781799057000,-181.23097916,0.000339,120]
[425527328,1781799057000,-460.475737,0.000339,7]
[425527322,1781799057000,-460.475737,0.000339,7]
[425527320,1781799057000,-460.475737,0.000339,7]
[425527323,1781799057000,-250.47172,0.000339,7]
[425527325,1781799057000,-460.475737,0.000339,7]
[425527327,1781799057000,-151.0,0.000339,7]
[425527326,1781799057000,-151.0,0.000339,7]
[425527329,1781799057000,-151.0,0.000339,7]
[425527330,1781799057000,-1243.332662,0.000339,7]
[425527331,1781799057000,-1243.332662,0.000339,7]
[425527332,1781799057000,-1243.332662,0.000339,7]
[425527334,1781799057000,-1243.332662,0.000339,7]
[425527337,1781799057000,-151.0,0.000339,7]
[425527365,1781799057000,-275.806068,0.000339,7]
[425527354,1781799057000,-151.0,0.000339,7]
[425527374,1781799057000,-275.806068,0.000339,7]
[425527394,1781799057000,-244.922494,0.000339,7]
[425527393,1781799057000,-244.922494,0.000339,7]
[425527397,1781799057000,-151.0,0.000339,7]
[425527398,1781799057000,-151.0,0.000339,7]
[425527409,1781799057000,-151.0,0.000339,7]
[425527408,1781799057000,-151.0,0.000339,7]
[425527399,1781799057000,-371.976905,0.000339,7]
[425527400,1781799057000,-151.0,0.000339,7]
[425527402,1781799057000,-151.0,0.000339,7]
[425527404,1781799057000,-151.0,0.000339,7]
[425527407,1781799057000,-151.0,0.000339,7]
[425527405,1781799057000,-151.0,0.000339,7]
[425527406,1781799057000,-371.976905,0.000339,7]
[425527401,1781799057000,-371.976905,0.000339,7]
[425527403,1781799057000,-371.976905,0.000339,7]
[425527410,1781799057000,-157.114489,0.000339,7]
[425527411,1781799057000,-151.0,0.000339,7]
[425527416,1781799057000,-152.543952,0.000339,7]
[425527417,1781799057000,-151.0,0.000339,7]
[425527415,1781799057000,-261.05015,0.000339,7]
[425527414,1781799057000,-151.0,0.000339,7]
[425527412,1781799057000,-151.0,0.000339,7]
[425527413,1781799057000,-151.0,0.000339,7]
[425527420,1781799057000,-394.821856,0.000339,7]
[425527419,1781799057000,-394.821856,0.000339,7]
[425527395,1781799057000,-244.922494,0.000339,7]
[425527396,1781799057000,-244.922494,0.000339,7]
[425527364,1781799057000,-275.806068,0.000339,7]
[425527389,1781799057000,-151.0,0.000339,7]
[425527366,1781799057000,-151.0,0.000339,7]
[425527369,1781799057000,-151.0,0.000339,7]
[425527367,1781799057000,-151.0,0.000339,7]
[425527370,1781799057000,-275.806068,0.000339,7]
[425527368,1781799057000,-151.78603,0.000339,7]
[425527418,1781799057000,-151.0,0.000339,7]
[425527372,1781799057000,-151.0,0.000339,7]
[425527390,1781799057000,-151.0,0.000339,7]
[425527373,1781799057000,-151.0,0.000339,7]
[425527375,1781799057000,-210.345145,0.000339,7]
[425527377,1781799057000,-151.0,0.000339,7]
[425527382,1781799057000,-151.0,0.000339,7]
[425527371,1781799057000,-151.0,0.000339,7]
[425527386,1781799057000,-151.0,0.000339,7]
[425527381,1781799057000,-151.0,0.000339,7]
[425527392,1781799057000,-151.0,0.000339,7]
[425527387,1781799057000,-151.0,0.000339,7]
[425527388,1781799057000,-151.0,0.000339,7]
[425527383,1781799057000,-151.0,0.000339,7]
[425527391,1781799057000,-151.0,0.000339,7]
[425527378,1781799057000,-151.0,0.000339,7]
[425527380,1781799057000,-151.0,0.000339,7]
[425527384,1781799057000,-281.250798,0.000339,7]
[425527376,1781799057000,-151.0,0.000339,7]
[425527379,1781799057000,-151.0,0.000339,7]
[425527385,1781799057000,-151.0,0.000339,7]
[425527462,1781799058000,-201.824542,0.000339,7]
[425527458,1781799058000,-265.920204,0.000339,7]
[425527459,1781799058000,-252.474326,0.000339,7]
[425527457,1781799058000,-201.824542,0.000339,7]
[425527453,1781799058000,-265.920204,0.000339,7]
[425527452,1781799058000,-265.920204,0.000339,7]
[425527449,1781799058000,-151.0,0.000339,7]
[425527455,1781799058000,-265.920204,0.000339,7]
[425527451,1781799058000,-151.0,0.000339,7]
[425527456,1781799058000,-1082.280557,0.000339,7]
[425527460,1781799058000,-201.824542,0.000339,7]
[425527474,1781799058000,-201.176873,0.000339,7]
[425527464,1781799058000,-1082.280557,0.000339,7]
[425527461,1781799058000,-1082.280557,0.000339,7]
[425527466,1781799058000,-201.824542,0.000339,7]
[425527465,1781799058000,-6842.425948,0.000339,7]
[425527468,1781799058000,-6842.425948,0.000339,7]
[425527470,1781799058000,-151.0,0.000339,7]
[425527467,1781799058000,-6842.425948,0.000339,7]
[425527469,1781799058000,-6842.425948,0.000339,7]
[425527471,1781799058000,-208.410849,0.000339,7]
[425527472,1781799058000,-208.410849,0.000339,7]
[425527475,1781799058000,-208.410849,0.000339,7]
[425527448,1781799058000,-151.0,0.000339,7]
[425527463,1781799058000,-151.0,0.000339,7]
[425527445,1781799058000,-151.0,0.000339,7]
[425527438,1781799058000,-157.316248,0.000339,7]
[425527454,1781799058000,-1082.280557,0.000339,7]
[425527477,1781799058000,-304.268461,0.000339,7]
[425527433,1781799058000,-151.0,0.000339,7]
[425527423,1781799058000,-642.478854,0.000339,7]
[425527422,1781799058000,-394.821856,0.000339,7]
[425527426,1781799058000,-642.478854,0.000339,7]
[425527425,1781799058000,-165.937982,0.000339,7]
[425527430,1781799058000,-151.0,0.000339,7]
[425527429,1781799058000,-151.0,0.000339,7]
[425527428,1781799058000,-278.132295,0.000339,7]
[425527424,1781799058000,-642.478854,0.000339,7]
[425527427,1781799058000,-642.478854,0.000339,7]
[425527432,1781799058000,-151.0,0.000339,7]
[425527431,1781799058000,-151.0,0.000339,7]
[425527434,1781799058000,-151.0,0.000339,7]
[425527437,1781799058000,-151.0,0.000339,7]
[425527439,1781799058000,-151.0,0.000339,7]
[425527436,1781799058000,-151.0,0.000339,7]
[425527435,1781799058000,-151.0,0.000339,7]
[425527442,1781799058000,-151.0,0.000339,7]
[425527443,1781799058000,-157.316248,0.000339,7]
[425527441,1781799058000,-157.316248,0.000339,7]
[425527444,1781799058000,-151.0,0.000339,7]
[425527440,1781799058000,-157.316248,0.000339,7]
[425527446,1781799058000,-151.0,0.000339,7]
[425527450,1781799058000,-151.0,0.000339,7]
[425527447,1781799058000,-179.300494,0.000339,7]
[425527421,1781799058000,-394.821856,0.000339,7]
[425527476,1781799058000,-1298.914583,0.000339,7]
[425527478,1781799058000,-208.410849,0.000339,7]
[425527507,1781799058000,-151.0,0.000339,7]
[425527506,1781799058000,-151.0,0.000339,7]
[425527510,1781799058000,-151.0,0.000339,7]
[425527509,1781799058000,-151.0,0.000339,7]
[425527513,1781799058000,-259.638426,0.000339,7]
[425527512,1781799058000,-322.635022,0.000339,7]
[425527515,1781799058000,-263.721813,0.000339,7]
[425527518,1781799058000,-151.0,0.000339,7]
[425527516,1781799058000,-182.99221,0.000339,7]
[425527521,1781799058000,-182.99221,0.000339,7]
[425527514,1781799058000,-151.0,0.000339,7]
[425527519,1781799058000,-322.635022,0.000339,7]
[425527522,1781799058000,-265.561258,0.000339,7]
[425527520,1781799058000,-259.638426,0.000339,7]
[425527517,1781799058000,-232.384889,0.000339,7]
[425527527,1781799058000,-151.0,0.000339,7]
[425527523,1781799058000,-151.0,0.000339,7]
[425527525,1781799058000,-259.638426,0.000339,7]
[425527529,1781799058000,-182.99221,0.000339,7]
[425527531,1781799058000,-151.0,0.000339,7]
[425527526,1781799058000,-182.99221,0.000339,7]
[425527530,1781799058000,-151.0,0.000339,7]
[425527524,1781799058000,-322.635022,0.000339,7]
[425527528,1781799058000,-322.635022,0.000339,7]
[425527473,1781799058000,-1298.914583,0.000339,7]
[425527511,1781799058000,-151.0,0.000339,7]
[425527504,1781799058000,-151.0,0.000339,7]
[425527532,1781799058000,-151.0,0.000339,7]
[425527508,1781799058000,-259.638426,0.000339,7]
[425527501,1781799058000,-151.0,0.000339,7]
[425527481,1781799058000,-304.268461,0.000339,7]
[425527480,1781799058000,-199.688649,0.000339,7]
[425527482,1781799058000,-304.268461,0.000339,7]
[425527488,1781799058000,-175.244633,0.000339,7]
[425527483,1781799058000,-199.688649,0.000339,7]
[425527486,1781799058000,-1298.914583,0.000339,7]
[425527484,1781799058000,-304.268461,0.000339,7]
[425527485,1781799058000,-199.688649,0.000339,7]
[425527487,1781799058000,-199.688649,0.000339,7]
[425527489,1781799058000,-2643.592445,0.000339,7]
[425527491,1781799058000,-2643.592445,0.000339,7]
[425527479,1781799058000,-1298.914583,0.000339,7]
[425527500,1781799058000,-722.972554,0.000339,7]
[425527505,1781799058000,-722.972554,0.000339,7]
[425527503,1781799058000,-151.0,0.000339,7]
[425527502,1781799058000,-722.972554,0.000339,7]
[425527490,1781799058000,-175.244633,0.000339,7]
[425527498,1781799058000,-722.972554,0.000339,7]
[425527496,1781799058000,-2643.592445,0.000339,7]
[425527497,1781799058000,-151.0,0.000339,7]
[425527495,1781799058000,-175.244633,0.000339,7]
[425527492,1781799058000,-151.0,0.000339,7]
[425527493,1781799058000,-175.244633,0.000339,7]
[425527499,1781799058000,-151.0,0.000339,7]
[425527494,1781799058000,-2643.592445,0.000339,7]
[425527574,1781799059000,-151.0,0.000339,7]
[425527570,1781799059000,-151.0,0.000339,7]
[425527569,1781799059000,-151.0,0.000339,7]
[425527567,1781799059000,-151.0,0.000339,7]
[425527564,1781799059000,-151.0,0.000339,7]
[425527566,1781799059000,-151.0,0.000339,7]
[425527561,1781799059000,-151.0,0.000339,7]
[425527562,1781799059000,-151.0,0.000339,7]
[425527565,1781799059000,-151.0,0.000339,7]
[425527568,1781799059000,-151.0,0.000339,7]
[425527575,1781799059000,-151.0,0.000339,7]
[425527578,1781799059000,-238.522015,0.000339,7]
[425527571,1781799059000,-151.0,0.000339,7]
[425527576,1781799059000,-293.684085,0.000339,7]
[425527573,1781799059000,-151.0,0.000339,7]
[425527577,1781799059000,-151.0,0.000339,7]
[425527580,1781799059000,-293.684085,0.000339,7]
[425527581,1781799059000,-151.0,0.000339,7]
[425527587,1781799059000,-190.580517,0.000339,7]
[425527583,1781799059000,-190.580517,0.000339,7]
[425527588,1781799059000,-226.404215,0.000339,7]
[425527582,1781799059000,-293.684085,0.000339,7]
[425527563,1781799059000,-151.0,0.000339,7]
[425527572,1781799059000,-151.0,0.000339,7]
[425527560,1781799059000,-151.0,0.000339,7]
[425527554,1781799059000,-221.47712,0.000339,7]
[425527558,1781799059000,-151.0,0.000339,7]
[425527533,1781799059000,-151.0,0.000339,7]
[425527535,1781799059000,-151.0,0.000339,7]
[425527536,1781799059000,-290.476817,0.000339,7]
[425527543,1781799059000,-151.0,0.000339,7]
[425527534,1781799059000,-151.0,0.000339,7]
[425527542,1781799059000,-221.47712,0.000339,7]
[425527538,1781799059000,-7162.48701473,0.000339,2]
[425527540,1781799059000,-151.0,0.000339,7]
[425527537,1781799059000,-151.0,0.000339,7]
[425527541,1781799059000,-151.0,0.000339,7]
[425527539,1781799059000,-151.0,0.000339,7]
[425527559,1781799059000,-151.0,0.000339,7]
[425527544,1781799059000,-200.0,0.000339,12]
[425527546,1781799059000,-221.47712,0.000339,7]
[425527545,1781799059000,-151.0,0.000339,7]
[425527555,1781799059000,-151.0,0.000339,7]
[425527552,1781799059000,-151.0,0.000339,7]
[425527556,1781799059000,-151.0,0.000339,7]
[425527553,1781799059000,-151.0,0.000339,7]
[425527548,1781799059000,-151.0,0.000339,7]
[425527585,1781799059000,-151.0,0.000339,7]
[425527549,1781799059000,-151.0,0.000339,7]
[425527551,1781799059000,-151.0,0.000339,7]
[425527557,1781799059000,-151.0,0.000339,7]
[425527547,1781799059000,-151.0,0.000339,7]
[425527584,1781799059000,-293.684085,0.000339,7]
[425527550,1781799059000,-221.47712,0.000339,7]
[425527586,1781799059000,-151.0,0.000339,7]
[425527616,1781799059000,-151.0,0.000339,7]
[425527617,1781799059000,-154.700289,0.000339,7]
[425527619,1781799059000,-151.0,0.000339,7]
[425527618,1781799059000,-151.0,0.000339,7]
[425527620,1781799059000,-154.700289,0.000339,7]
[425527623,1781799059000,-154.700289,0.000339,7]
[425527624,1781799059000,-248.910365,0.000339,7]
[425527622,1781799059000,-151.0,0.000339,7]
[425527625,1781799059000,-151.0,0.000339,7]
[425527629,1781799059000,-248.910365,0.000339,7]
[425527626,1781799059000,-248.910365,0.000339,7]
[425527621,1781799059000,-151.0,0.000339,7]
[425527632,1781799059000,-1380.237866,0.000339,7]
[425527627,1781799059000,-151.0,0.000339,7]
[425527631,1781799059000,-151.0,0.000339,7]
[425527628,1781799059000,-248.910365,0.000339,7]
[425527633,1781799059000,-726.25358,0.000339,7]
[425527636,1781799059000,-1380.237866,0.000339,7]
[425527637,1781799059000,-151.0,0.000339,7]
[425527635,1781799059000,-1289.370358,0.000339,7]
[425527639,1781799059000,-151.0,0.000339,7]
[425527634,1781799059000,-151.0,0.000339,7]
[425527638,1781799059000,-726.25358,0.000339,7]
[425527640,1781799059000,-1289.370358,0.000339,7]
[425527630,1781799059000,-726.25358,0.000339,7]
[425527615,1781799059000,-271.56216,0.000339,7]
[425527579,1781799059000,-151.0,0.000339,7]
[425527612,1781799059000,-151.0,0.000339,7]
[425527614,1781799059000,-154.700289,0.000339,7]
[425527590,1781799059000,-151.0,0.000339,7]
[425527594,1781799059000,-151.0,0.000339,7]
[425527591,1781799059000,-151.0,0.000339,7]
[425527596,1781799059000,-151.0,0.000339,7]
[425527592,1781799059000,-226.404215,0.000339,7]
[425527589,1781799059000,-151.0,0.000339,7]
[425527595,1781799059000,-151.0,0.000339,7]
[425527598,1781799059000,-151.0,0.000339,7]
[425527597,1781799059000,-226.404215,0.000339,7]
[425527599,1781799059000,-151.0,0.000339,7]
[425527601,1781799059000,-190.580517,0.000339,7]
[425527593,1781799059000,-151.0,0.000339,7]
[425527600,1781799059000,-151.0,0.000339,7]
[425527603,1781799059000,-226.404215,0.000339,7]
[425527602,1781799059000,-151.0,0.000339,7]
[425527605,1781799059000,-151.0,0.000339,7]
[425527613,1781799059000,-151.0,0.000339,7]
[425527609,1781799059000,-151.0,0.000339,7]
[425527608,1781799059000,-151.0,0.000339,7]
[425527606,1781799059000,-190.580517,0.000339,7]
[425527604,1781799059000,-151.0,0.000339,7]
[425527607,1781799059000,-151.0,0.000339,7]
[425527611,1781799059000,-151.0,0.000339,7]
[425527610,1781799059000,-151.0,0.000339,7]
[425527677,1781799060000,-172.64331333,0.00033919,7]
[425527676,1781799060000,-191.99053313,0.00033919,7]
[425527674,1781799060000,-203.29211032,0.00033919,7]
[425527667,1781799060000,-311.60148968,0.00033919,7]
[425527670,1781799060000,-184.22714989,0.00033919,7]
[425527671,1781799060000,-184.06160676,0.00033919,7]
[425527669,1781799060000,-443.0466102,0.00033919,7]
[425527672,1781799060000,-160.00324389,0.00033919,7]
[425527679,1781799060000,-327.98284917,0.00033919,7]
[425527668,1781799060000,-378.58839367,0.00033919,7]
[425527678,1781799060000,-357.36274223,0.00033919,7]
[425527692,1781799060000,-396.0,0.00033951,2]
[425527682,1781799060000,-360.07628403,0.00033919,7]
[425527685,1781799060000,-403.99269417,0.00033919,7]
[425527680,1781799060000,-304.67701447,0.00033919,2]
[425527686,1781799060000,-13043.90998316,0.0003392,2]
[425527681,1781799060000,-339.86510316,0.00033919,7]
[425527683,1781799060000,-444.24517793,0.00033919,7]
[425527684,1781799060000,-333.91487816,0.00033919,7]
[425527689,1781799060000,-150.0,0.00033945,30]
[425527688,1781799060000,-500.0,0.00033939,2]
[425527699,1781799060000,-220.0,0.00033985,10]
[425527666,1781799060000,-169.61118202,0.00033919,7]
[425527687,1781799060000,-350.0,0.00033924,33]
[425527673,1781799060000,-177.4126177,0.00033919,7]
[425527649,1781799060000,-151.0,0.000339,7]
[425527665,1781799060000,-170.63892082,0.00033919,7]
[425527690,1781799060000,-545.17647487,0.00033946,30]
[425527643,1781799060000,-151.0,0.000339,7]
[425527642,1781799060000,-151.0,0.000339,7]
[425527641,1781799060000,-1380.237866,0.000339,7]
[425527654,1781799060000,-1380.237866,0.000339,7]
[425527645,1781799060000,-726.25358,0.000339,7]
[425527647,1781799060000,-1289.370358,0.000339,7]
[425527644,1781799060000,-151.0,0.000339,7]
[425527648,1781799060000,-350.0,0.000339,30]
[425527652,1781799060000,-1289.370358,0.000339,7]
[425527646,1781799060000,-264.409704,0.000339,7]
[425527675,1781799060000,-194.05198123,0.00033919,7]
[425527650,1781799060000,-151.0,0.000339,7]
[425527651,1781799060000,-151.0,0.000339,7]
[425527655,1781799060000,-151.0,0.000339,7]
[425527658,1781799060000,-151.0,0.000339,7]
[425527664,1781799060000,-390.90524099,0.00033919,7]
[425527660,1781799060000,-150.0,0.00033915,30]
[425527657,1781799060000,-151.0,0.000339,7]
[425527656,1781799060000,-151.0,0.000339,7]
[425527661,1781799060000,-340.42886299,0.00033918,7]
[425527659,1781799060000,-152.26,0.00033914,30]
[425527662,1781799060000,-186.75543692,0.00033919,7]
[425527663,1781799060000,-318.05581656,0.00033919,7]
[425527653,1781799060000,-151.0,0.000339,7]
[425527698,1781799060000,-390.0,0.00033977,2]
[425527695,1781799060000,-150.0,0.00033959,30]
[425527691,1781799060000,-30938.18859609,0.0003395,2]
[425527729,1781799060000,-241.0,0.00034043,30]
[425527731,1781799060000,-175.0,0.00034043,30]
[425527728,1781799060000,-158.0,0.00034043,30]
[425527724,1781799060000,-856.0,0.00034043,30]
[425527726,1781799060000,-226.0,0.00034043,30]
[425527732,1781799060000,-154.0,0.00034043,30]
[425527727,1781799060000,-155.0,0.00034043,30]
[425527730,1781799060000,-200.0,0.00034043,30]
[425527734,1781799060000,-400.0,0.00034057,2]
[425527733,1781799060000,-159.0,0.00034043,30]
[425527736,1781799060000,-386.0,0.00034066,2]
[425527725,1781799060000,-167.0,0.00034043,30]
[425527735,1781799060000,-390.0,0.00034065,2]
[425527737,1781799060000,-150.0,0.00034068,120]
[425527739,1781799060000,-396.0,0.00034081,2]
[425527740,1781799060000,-152.0,0.00034093,7]
[425527742,1781799060000,-200.0,0.000341,10]
[425527741,1781799060000,-152.0,0.00034093,7]
[425527743,1781799060000,-396.0,0.00034101,2]
[425527744,1781799060000,-150.0,0.00034106,120]
[425527696,1781799060000,-2000.0,0.00033973,50]
[425527747,1781799060000,-500.0,0.0003412,2]
[425527745,1781799060000,-153.3938,0.00034112,2]
[425527746,1781799060000,-166.5331257,0.00034116,30]
[425527738,1781799060000,-218.467955,0.00034078,120]
[425527722,1781799060000,-150.0,0.00034041,120]
[425527748,1781799060000,-500.0,0.0003412,2]
[425527721,1781799060000,-390.0,0.00034036,2]
[425527693,1781799060000,-150.0,0.00033953,30]
[425527697,1781799060000,-293.80835635,0.00033974,2]
[425527694,1781799060000,-150.0,0.00033959,30]
[425527700,1781799060000,-388.0,0.00033986,2]
[425527701,1781799060000,-151.0,0.00033989,14]
[425527703,1781799060000,-221.41,0.00034,30]
[425527707,1781799060000,-21565.47300307,0.00034,60]
[425527711,1781799060000,-160.0,0.00034,30]
[425527704,1781799060000,-800.0,0.00034,7]
[425527702,1781799060000,-150.0,0.00033992,120]
[425527706,1781799060000,-803.01301358,0.00034,2]
[425527705,1781799060000,-248.66,0.00034,30]
[425527708,1781799060000,-12924.53,0.00034,30]
[425527717,1781799060000,-350.0,0.00034005,2]
[425527709,1781799060000,-1353.51535939,0.00034,15]
[425527719,1781799060000,-152.0,0.00034025,7]
[425527718,1781799060000,-152.0,0.00034025,7]
[425527716,1781799060000,-216.20375396,0.00034,10]
[425527720,1781799060000,-150.0,0.0003403,120]
[425527715,1781799060000,-52454.48234795,0.00034,60]
[425527713,1781799060000,-216.20375396,0.00034,7]
[425527712,1781799060000,-216.20375396,0.00034,30]
[425527710,1781799060000,-39723.85645113,0.00034,60]
[425527714,1781799060000,-800.0,0.00034,7]
[425527723,1781799060000,-536.0,0.00034043,30]
[425527783,1781799061000,-150.0,0.00034259,120]
[425527773,1781799061000,-2119.64,0.00034188,2]
[425527775,1781799061000,-3825.19382625,0.000342,2]
[425527779,1781799061000,-152.0,0.00034236,7]
[425527776,1781799061000,-300.0,0.000342,10]
[425527780,1781799061000,-152.0,0.00034236,7]
[425527778,1781799061000,-150.0,0.00034233,120]
[425527781,1781799061000,-152.0,0.00034236,7]
[425527777,1781799061000,-150.0,0.00034221,120]
[425527793,1781799061000,-596.53038388,0.0003429,2]
[425527789,1781799061000,-250.0,0.00034277,7]
[425527787,1781799061000,-150.0,0.00034273,2]
[425527784,1781799061000,-150.0,0.00034273,2]
[425527791,1781799061000,-1000.0,0.00034286,30]
[425527790,1781799061000,-357.0,0.00034278,14]
[425527785,1781799061000,-290.499,0.00034273,2]
[425527788,1781799061000,-3559.0,0.00034273,2]
[425527794,1781799061000,-513.30364659,0.0003429,2]
[425527801,1781799061000,-302.99350313,0.0003429,2]
[425527798,1781799061000,-607.06081893,0.0003429,2]
[425527782,1781799061000,-710.39066907,0.00034238,14]
[425527786,1781799061000,-150.084,0.00034273,2]
[425527774,1781799061000,-150.0,0.00034189,120]
[425527757,1781799061000,-329.0,0.0003412,2]
[425527772,1781799061000,-150.0,0.00034182,120]
[425527795,1781799061000,-594.17234033,0.0003429,2]
[425527749,1781799061000,-500.0,0.0003412,2]
[425527750,1781799061000,-500.0,0.0003412,2]
[425527751,1781799061000,-500.0,0.0003412,2]
[425527752,1781799061000,-500.0,0.0003412,2]
[425527753,1781799061000,-500.0,0.0003412,2]
[425527762,1781799061000,-390.0,0.00034156,2]
[425527760,1781799061000,-150.0,0.00034137,120]
[425527763,1781799061000,-152.0,0.00034162,7]
[425527759,1781799061000,-2726.0,0.00034133,5]
[425527761,1781799061000,-150.0,0.00034144,120]
[425527754,1781799061000,-500.0,0.0003412,2]
[425527756,1781799061000,-500.0,0.0003412,2]
[425527755,1781799061000,-500.0,0.0003412,2]
[425527764,1781799061000,-152.0,0.00034162,7]
[425527765,1781799061000,-1522.51918781,0.00034168,7]
[425527767,1781799061000,-278.0,0.00034172,2]
[425527770,1781799061000,-150.0,0.00034172,2]
[425527769,1781799061000,-220.0,0.00034172,2]
[425527766,1781799061000,-200.0,0.00034172,2]
[425527768,1781799061000,-221.0,0.00034172,2]
[425527771,1781799061000,-151.0,0.00034182,7]
[425527800,1781799061000,-729.19777188,0.0003429,2]
[425527758,1781799061000,-390.0,0.00034128,2]
[425527797,1781799061000,-494.64195032,0.0003429,2]
[425527826,1781799061000,-500.0,0.00034296,60]
[425527827,1781799061000,-500.0,0.00034296,60]
[425527829,1781799061000,-500.0,0.00034296,60]
[425527830,1781799061000,-500.0,0.00034296,60]
[425527828,1781799061000,-321.6287742,0.00034296,60]
[425527831,1781799061000,-903.8618267,0.00034296,60]
[425527832,1781799061000,-500.0,0.00034296,60]
[425527833,1781799061000,-500.0,0.00034296,60]
[425527834,1781799061000,-682.4884758,0.00034296,60]
[425527836,1781799061000,-169.8282632,0.00034296,60]
[425527825,1781799061000,-500.0,0.00034296,60]
[425527837,1781799061000,-217.0468058,0.00034296,60]